[Event "Titled Tuesday Blitz July 20 2021"]
[White "Aradhya, Garg"]
[Black "Ahmadzada, Ahmad"]
[WhiteFideId "25006746"]
[BlackFideId "13413007"]
[WhiteElo "2146"]
[BlackElo "2226"]
[Result "0-1"]
[Round "08"]
[TimeControl "180+1"]
[Date "2021.07.20"]
[WhiteClock "0:00:06"]
[BlackClock "0:00:07"]

1. d4 {[%clk 0:03:00]}  Nf6 {[%clk 0:02:59]} 2. c4 {[%clk 0:03:00]}  Nc6 {[%clk 0:03:00]} 3. Nf3 {[%clk 0:02:59]}  e6 {[%clk 0:02:59]} 4. Nc3 {[%clk 0:02:52]}  Bb4 {[%clk 0:02:59]} 5. Qc2 {[%clk 0:02:52]}  O-O {[%clk 0:02:57]} 6. e3 {[%clk 0:02:49]}  d6 {[%clk 0:02:55]} 7. Bd2 {[%clk 0:02:45]}  e5 {[%clk 0:02:54]} 8. dxe5 {[%clk 0:02:43]}  Nxe5 {[%clk 0:02:51]} 9. Be2 {[%clk 0:02:37]}  Bg4 {[%clk 0:02:45]} 10. Nxe5 {[%clk 0:02:36]}  dxe5 {[%clk 0:02:43]} 11. f3 {[%clk 0:02:30]}  Be6 {[%clk 0:02:40]} 12. O-O-O {[%clk 0:02:30]}  c6 {[%clk 0:02:33]} 13. g4 {[%clk 0:02:20]}  Qb6 {[%clk 0:02:13]} 14. h4 {[%clk 0:02:15]}  Rfd8 {[%clk 0:01:59]} 15. g5 {[%clk 0:02:08]}  Nh5 {[%clk 0:01:50]} 16. Rhg1 {[%clk 0:02:08]}  g6 {[%clk 0:01:42]} 17. Kb1 {[%clk 0:01:26]}  Bf5 {[%clk 0:01:35]} 18. e4 {[%clk 0:01:23]}  Be6 {[%clk 0:01:30]} 19. a3 {[%clk 0:01:06]}  Be7 {[%clk 0:01:13]} 20. Ka1 {[%clk 0:00:47]}  Nf4 {[%clk 0:01:10]} 21. Bxf4 {[%clk 0:00:32]}  exf4 {[%clk 0:01:11]} 22. e5 {[%clk 0:00:32]}  Bf5 {[%clk 0:01:01]} 23. Qc1 {[%clk 0:00:29]}  Qa5 {[%clk 0:00:40]} 24. Rxd8+ {[%clk 0:00:22]}  Rxd8 {[%clk 0:00:39]} 25. Rd1 {[%clk 0:00:23]}  Rxd1 {[%clk 0:00:37]} 26. Bxd1 {[%clk 0:00:24]}  Qxe5 {[%clk 0:00:37]} 27. Qd2 {[%clk 0:00:20]}  Kg7 {[%clk 0:00:33]} 28. Ne2 {[%clk 0:00:19]}  Bxa3 {[%clk 0:00:32]} 29. Ka2 {[%clk 0:00:18]}  Bd6 {[%clk 0:00:26]} 30. Nd4 {[%clk 0:00:18]}  Bc8 {[%clk 0:00:23]} 31. Bb3 {[%clk 0:00:18]}  a6 {[%clk 0:00:17]} 32. Ne2 {[%clk 0:00:12]}  Be6 {[%clk 0:00:16]} 33. Nc3 {[%clk 0:00:11]}  Be7 {[%clk 0:00:14]} 34. Ne4 {[%clk 0:00:11]}  h6 {[%clk 0:00:14]} 35. Kb1 {[%clk 0:00:07]}  hxg5 {[%clk 0:00:14]} 36. hxg5 {[%clk 0:00:08]}  Bxg5 {[%clk 0:00:14]} 37. Qb4 {[%clk 0:00:08]}  Bf5 {[%clk 0:00:12]} 38. Bc2 {[%clk 0:00:08]}  Qe7 {[%clk 0:00:10]} 39. Qc3+ {[%clk 0:00:07]}  Bf6 {[%clk 0:00:11]} 40. Nxf6 {[%clk 0:00:07]}  Qxf6 {[%clk 0:00:11]} 41. Qb4 {[%clk 0:00:06]}  Be6 {[%clk 0:00:09]} 42. Qxb7 {[%clk 0:00:06]}  Bxc4 {[%clk 0:00:09]} 43. Be4 {[%clk 0:00:06]}  c5 {[%clk 0:00:07]} 44. Qc7 {[%clk 0:00:06]}  Qd4 {[%clk 0:00:07]} 45. Kc1 {[%clk 0:00:05]}  Qe3+ {[%clk 0:00:07]} 46. Kb1 {[%clk 0:00:05]}  Qe1+ {[%clk 0:00:05]} 47. Kc2 {[%clk 0:00:05]}  Qf2+ {[%clk 0:00:05]} 48. Kc3 {[%clk 0:00:05]}  Qd4+ {[%clk 0:00:05]} 49. Kc2 {[%clk 0:00:05]}  Bd5 {[%clk 0:00:04]} 50. Qxf4 {[%clk 0:00:05]}  Bxe4+ {[%clk 0:00:05]} 51. fxe4 {[%clk 0:00:05]}  Qf6 {[%clk 0:00:05]} 52. Qe3 {[%clk 0:00:05]}  Qe5 {[%clk 0:00:06]} 53. Kd3 {[%clk 0:00:04]}  f5 {[%clk 0:00:06]} 54. exf5 {[%clk 0:00:05]}  Qxe3+ {[%clk 0:00:07]} 55. Kxe3 {[%clk 0:00:06]}  gxf5 {[%clk 0:00:07]} 0-1


[Site "https://www.chess.com"]

[Event "Titled Tuesday Blitz July 20 2021"]
[White "Arkell, Keith C"]
[Black "Sliwicki, Damian"]
[WhiteFideId "400270"]
[BlackFideId "1127128"]
[WhiteElo "2398"]
[BlackElo "2149"]
[Result "1/2-1/2"]
[Round "08"]
[TimeControl "180+1"]
[Date "2021.07.21"]
[WhiteClock "0:00:39"]
[BlackClock "0:00:09"]

1. d4 {[%clk 0:03:00]}  d5 {[%clk 0:02:56]} 2. Nf3 {[%clk 0:03:00]}  e6 {[%clk 0:02:54]} 3. c4 {[%clk 0:03:01]}  dxc4 {[%clk 0:02:52]} 4. e3 {[%clk 0:03:00]}  a6 {[%clk 0:02:48]} 5. a4 {[%clk 0:03:00]}  Bb4+ {[%clk 0:02:47]} 6. Bd2 {[%clk 0:02:59]}  Qe7 {[%clk 0:02:34]} 7. Bxc4 {[%clk 0:02:56]}  Nf6 {[%clk 0:02:32]} 8. O-O {[%clk 0:02:50]}  O-O {[%clk 0:02:29]} 9. Bxb4 {[%clk 0:02:50]}  Qxb4 {[%clk 0:02:29]} 10. Qb3 {[%clk 0:02:49]}  Nc6 {[%clk 0:02:24]} 11. Qxb4 {[%clk 0:02:49]}  Nxb4 {[%clk 0:02:25]} 12. a5 {[%clk 0:02:49]}  Bd7 {[%clk 0:02:17]} 13. Rc1 {[%clk 0:02:48]}  Rac8 {[%clk 0:02:07]} 14. Ne5 {[%clk 0:02:47]}  c5 {[%clk 0:02:00]} 15. Nxd7 {[%clk 0:02:46]}  Nxd7 {[%clk 0:01:59]} 16. Ra4 {[%clk 0:02:40]}  b5 {[%clk 0:01:54]} 17. axb6 {[%clk 0:02:39]}  Nxb6 {[%clk 0:01:54]} 18. Ra1 {[%clk 0:02:25]}  cxd4 {[%clk 0:01:44]} 19. Na3 {[%clk 0:02:23]}  d3 {[%clk 0:01:40]} 20. b3 {[%clk 0:02:14]}  Rfd8 {[%clk 0:01:35]} 21. Rd1 {[%clk 0:02:13]}  Nc2 {[%clk 0:01:28]} 22. Ra2 {[%clk 0:02:07]}  Nxa3 {[%clk 0:01:25]} 23. Rxa3 {[%clk 0:02:08]}  Nxc4 {[%clk 0:01:26]} 24. bxc4 {[%clk 0:02:08]}  Rxc4 {[%clk 0:01:26]} 25. Rxa6 {[%clk 0:02:07]}  Kf8 {[%clk 0:01:10]} 26. Ra3 {[%clk 0:02:04]}  d2 {[%clk 0:01:09]} 27. Kf1 {[%clk 0:02:04]}  Ke7 {[%clk 0:00:40]} 28. Ke2 {[%clk 0:02:04]}  Rc2 {[%clk 0:00:37]} 29. Ra7+ {[%clk 0:02:02]}  Kf6 {[%clk 0:00:36]} 30. g4 {[%clk 0:02:00]}  Rc1 {[%clk 0:00:31]} 31. h4 {[%clk 0:01:56]}  Rxd1 {[%clk 0:00:26]} 32. Kxd1 {[%clk 0:01:57]}  Rd5 {[%clk 0:00:22]} 33. h5 {[%clk 0:01:51]}  h6 {[%clk 0:00:20]} 34. Rb7 {[%clk 0:01:44]}  Rd3 {[%clk 0:00:19]} 35. Rb5 {[%clk 0:01:40]}  Rd6 {[%clk 0:00:14]} 36. Ra5 {[%clk 0:01:33]}  Rd7 {[%clk 0:00:14]} 37. Rb5 {[%clk 0:01:31]}  Ke7 {[%clk 0:00:10]} 38. Rb2 {[%clk 0:01:26]}  Kf6 {[%clk 0:00:10]} 39. Rb5 {[%clk 0:01:19]}  Rd5 {[%clk 0:00:06]} 40. Rxd5 {[%clk 0:01:18]}  exd5 {[%clk 0:00:07]} 41. f4 {[%clk 0:01:14]}  g6 {[%clk 0:00:05]} 42. hxg6 {[%clk 0:01:06]}  fxg6 {[%clk 0:00:06]} 43. Kxd2 {[%clk 0:01:01]}  h5 {[%clk 0:00:06]} 44. gxh5 {[%clk 0:00:49]}  gxh5 {[%clk 0:00:07]} 45. Ke2 {[%clk 0:00:49]}  Kf5 {[%clk 0:00:07]} 46. Kf3 {[%clk 0:00:49]}  h4 {[%clk 0:00:08]} 47. Kg2 {[%clk 0:00:46]}  Ke4 {[%clk 0:00:07]} 48. Kh3 {[%clk 0:00:45]}  Kxe3 {[%clk 0:00:07]} 49. f5 {[%clk 0:00:42]}  d4 {[%clk 0:00:08]} 50. f6 {[%clk 0:00:43]}  d3 {[%clk 0:00:09]} 51. f7 {[%clk 0:00:43]}  d2 {[%clk 0:00:09]} 52. f8=Q {[%clk 0:00:44]}  d1=Q {[%clk 0:00:10]} 53. Qe7+ {[%clk 0:00:42]}  Kd2 {[%clk 0:00:08]} 54. Qd6+ {[%clk 0:00:41]}  Ke1 {[%clk 0:00:08]} 55. Qxd1+ {[%clk 0:00:39]}  Kxd1 {[%clk 0:00:09]} 56. Kxh4 {[%clk 0:00:39]} 1/2-1/2


[Site "https://www.chess.com"]

[Event "Titled Tuesday Blitz July 20 2021"]
[White "Bartel, Michal"]
[Black "Bartel, Mateusz"]
[WhiteFideId "1119257"]
[BlackFideId "1112635"]
[WhiteElo "2271"]
[BlackElo "2586"]
[Result "1-0"]
[Round "08"]
[TimeControl "180+1"]
[Date "2021.07.20"]
[WhiteClock "0:00:21"]
[BlackClock "0:00:15"]

1. e4 {[%clk 0:03:00]}  c6 {[%clk 0:02:26]} 2. Nc3 {[%clk 0:02:59]}  d5 {[%clk 0:02:19]} 3. Nf3 {[%clk 0:02:59]}  Bg4 {[%clk 0:02:18]} 4. h3 {[%clk 0:02:59]}  Bxf3 {[%clk 0:02:17]} 5. Qxf3 {[%clk 0:02:59]}  e6 {[%clk 0:02:16]} 6. g4 {[%clk 0:02:59]}  Nd7 {[%clk 0:02:14]} 7. Bg2 {[%clk 0:02:59]}  Bd6 {[%clk 0:02:13]} 8. Qe2 {[%clk 0:02:59]}  Ne7 {[%clk 0:02:10]} 9. d4 {[%clk 0:02:41]}  Qb6 {[%clk 0:02:08]} 10. e5 {[%clk 0:02:18]}  Bb4 {[%clk 0:02:08]} 11. Be3 {[%clk 0:02:19]}  c5 {[%clk 0:02:03]} 12. dxc5 {[%clk 0:02:02]}  Bxc5 {[%clk 0:02:04]} 13. Bxc5 {[%clk 0:01:58]}  Nxc5 {[%clk 0:02:05]} 14. Qb5+ {[%clk 0:01:57]}  Qxb5 {[%clk 0:01:47]} 15. Nxb5 {[%clk 0:01:58]}  Ng6 {[%clk 0:01:47]} 16. Nc7+ {[%clk 0:01:53]}  Kd7 {[%clk 0:01:47]} 17. Nxa8 {[%clk 0:01:54]}  Nxe5 {[%clk 0:01:46]} 18. O-O-O {[%clk 0:01:51]}  Kd6 {[%clk 0:01:44]} 19. f4 {[%clk 0:01:38]}  Ng6 {[%clk 0:01:42]} 20. f5 {[%clk 0:01:39]}  Nf4 {[%clk 0:01:41]} 21. Bf3 {[%clk 0:01:27]}  Rxa8 {[%clk 0:01:39]} 22. c4 {[%clk 0:01:25]}  Ncd3+ {[%clk 0:01:31]} 23. Kc2 {[%clk 0:01:20]}  Nf2 {[%clk 0:01:30]} 24. cxd5 {[%clk 0:01:16]}  Nxd1 {[%clk 0:01:30]} 25. Rxd1 {[%clk 0:01:01]}  Nxd5 {[%clk 0:01:25]} 26. fxe6 {[%clk 0:00:56]}  fxe6 {[%clk 0:01:26]} 27. Be4 {[%clk 0:00:54]}  h6 {[%clk 0:01:16]} 28. Bxd5 {[%clk 0:00:42]}  exd5 {[%clk 0:01:11]} 29. Rf1 {[%clk 0:00:42]}  Re8 {[%clk 0:01:07]} 30. Kd3 {[%clk 0:00:40]}  Re7 {[%clk 0:01:00]} 31. Rf8 {[%clk 0:00:38]}  Rc7 {[%clk 0:00:55]} 32. Rd8+ {[%clk 0:00:36]}  Ke5 {[%clk 0:00:55]} 33. Rf8 {[%clk 0:00:32]}  g6 {[%clk 0:00:53]} 34. Rh8 {[%clk 0:00:31]}  Kf6 {[%clk 0:00:45]} 35. Rxh6 {[%clk 0:00:31]}  Kg5 {[%clk 0:00:26]} 36. Rh8 {[%clk 0:00:30]}  Rd7 {[%clk 0:00:25]} 37. Kd4 {[%clk 0:00:29]}  Kf4 {[%clk 0:00:25]} 38. Rg8 {[%clk 0:00:25]}  Rd6 {[%clk 0:00:25]} 39. Rg7 {[%clk 0:00:25]}  Kg3 {[%clk 0:00:22]} 40. Rxb7 {[%clk 0:00:20]}  Kxh3 {[%clk 0:00:20]} 41. Rxa7 {[%clk 0:00:20]}  Kxg4 {[%clk 0:00:21]} 42. b4 {[%clk 0:00:20]}  g5 {[%clk 0:00:20]} 43. b5 {[%clk 0:00:20]}  Kf3 {[%clk 0:00:19]} 44. a4 {[%clk 0:00:19]}  g4 {[%clk 0:00:18]} 45. Rf7+ {[%clk 0:00:20]}  Kg2 {[%clk 0:00:15]} 46. a5 {[%clk 0:00:20]}  g3 {[%clk 0:00:15]} 47. b6 {[%clk 0:00:21]} 1-0


[Site "https://www.chess.com"]

[Event "Titled Tuesday Blitz July 20 2021"]
[White "Baskin, Robert"]
[Black "Locci, Damiano"]
[WhiteFideId "24662402"]
[BlackFideId "819751"]
[WhiteElo "2462"]
[BlackElo "2445"]
[Result "1-0"]
[Round "08"]
[TimeControl "180+1"]
[Date "2021.07.21"]
[WhiteClock "0:02:13"]
[BlackClock "0:00:40"]

1. e4 {[%clk 0:03:00]}  c5 {[%clk 0:02:57]} 2. Nf3 {[%clk 0:03:00]}  Nf6 {[%clk 0:02:53]} 3. Nc3 {[%clk 0:02:54]}  d5 {[%clk 0:02:46]} 4. exd5 {[%clk 0:02:54]}  Nxd5 {[%clk 0:02:47]} 5. Bb5+ {[%clk 0:02:53]}  Bd7 {[%clk 0:02:47]} 6. Ne5 {[%clk 0:02:53]}  Bxb5 {[%clk 0:02:40]} 7. Qf3 {[%clk 0:02:52]}  f6 {[%clk 0:02:40]} 8. Nxb5 {[%clk 0:02:52]}  fxe5 {[%clk 0:02:35]} 9. Qxd5 {[%clk 0:02:51]}  Qxd5 {[%clk 0:02:35]} 10. Nc7+ {[%clk 0:02:51]}  Kd7 {[%clk 0:02:36]} 11. Nxd5 {[%clk 0:02:52]}  Nc6 {[%clk 0:02:35]} 12. b3 {[%clk 0:02:47]}  g6 {[%clk 0:02:12]} 13. Bb2 {[%clk 0:02:47]}  Nd4 {[%clk 0:02:12]} 14. O-O-O {[%clk 0:02:43]}  Bh6 {[%clk 0:01:59]} 15. Rhe1 {[%clk 0:02:42]}  Rhf8 {[%clk 0:01:27]} 16. f3 {[%clk 0:02:37]}  Rf5 {[%clk 0:01:10]} 17. Ne3 {[%clk 0:02:33]}  Rh5 {[%clk 0:00:58]} 18. Ng4 {[%clk 0:02:28]}  Bf4 {[%clk 0:00:45]} 19. g3 {[%clk 0:02:14]}  Nxf3 {[%clk 0:00:45]} 20. Rf1 {[%clk 0:02:13]}  Nxd2 {[%clk 0:00:40]} 21. gxf4 {[%clk 0:02:13]} 1-0


[Site "https://www.chess.com"]

[Event "Titled Tuesday Blitz July 20 2021"]
[White "Bortnyk, Olexandr"]
[Black "Nakamura, Hikaru"]
[WhiteFideId "14120828"]
[BlackFideId "2016192"]
[WhiteElo "2723"]
[BlackElo "2900"]
[Result "0-1"]
[Round "08"]
[TimeControl "180+1"]
[Date "2021.07.20"]
[WhiteClock "0:00:01"]
[BlackClock "0:00:09"]

1. e4 {[%clk 0:03:00]}  c5 {[%clk 0:02:55]} 2. c3 {[%clk 0:02:58]}  d5 {[%clk 0:02:54]} 3. exd5 {[%clk 0:02:59]}  Qxd5 {[%clk 0:02:54]} 4. d4 {[%clk 0:02:59]}  Nf6 {[%clk 0:02:54]} 5. Be3 {[%clk 0:02:58]}  cxd4 {[%clk 0:02:54]} 6. cxd4 {[%clk 0:02:59]}  e6 {[%clk 0:02:54]} 7. Nc3 {[%clk 0:02:59]}  Qd8 {[%clk 0:02:55]} 8. Nf3 {[%clk 0:03:00]}  Nc6 {[%clk 0:02:55]} 9. Bd3 {[%clk 0:02:59]}  Be7 {[%clk 0:02:56]} 10. O-O {[%clk 0:02:56]}  O-O {[%clk 0:02:56]} 11. a3 {[%clk 0:02:56]}  b6 {[%clk 0:02:55]} 12. Qe2 {[%clk 0:02:48]}  Bb7 {[%clk 0:02:55]} 13. Rac1 {[%clk 0:02:43]}  Rc8 {[%clk 0:02:54]} 14. Rfd1 {[%clk 0:02:42]}  Qc7 {[%clk 0:02:19]} 15. Bg5 {[%clk 0:02:31]}  Qb8 {[%clk 0:02:16]} 16. Ne4 {[%clk 0:02:21]}  Nd5 {[%clk 0:02:00]} 17. Bxe7 {[%clk 0:01:48]}  Ncxe7 {[%clk 0:02:01]} 18. Ne5 {[%clk 0:01:47]}  Rxc1 {[%clk 0:01:36]} 19. Rxc1 {[%clk 0:01:48]}  Nf5 {[%clk 0:01:35]} 20. Qg4 {[%clk 0:01:24]}  Rc8 {[%clk 0:01:31]} 21. Re1 {[%clk 0:01:23]}  Rc7 {[%clk 0:01:06]} 22. Ng5 {[%clk 0:01:05]}  Nf6 {[%clk 0:01:05]} 23. Qh3 {[%clk 0:01:05]}  Qc8 {[%clk 0:00:51]} 24. Ng4 {[%clk 0:00:41]}  h6 {[%clk 0:00:20]} 25. Nxf6+ {[%clk 0:00:30]}  gxf6 {[%clk 0:00:21]} 26. Bxf5 {[%clk 0:00:10]}  Rc1 {[%clk 0:00:21]} 27. Qe3 {[%clk 0:00:08]}  Rxe1+ {[%clk 0:00:21]} 28. Qxe1 {[%clk 0:00:09]}  hxg5 {[%clk 0:00:20]} 29. Bd3 {[%clk 0:00:08]}  Qc6 {[%clk 0:00:20]} 30. Bf1 {[%clk 0:00:08]}  Qc2 {[%clk 0:00:16]} 31. Qc3 {[%clk 0:00:03]}  Qd1 {[%clk 0:00:16]} 32. Qd3 {[%clk 0:00:03]}  Qc1 {[%clk 0:00:15]} 33. b4 {[%clk 0:00:02]}  a5 {[%clk 0:00:10]} 34. bxa5 {[%clk 0:00:02]}  bxa5 {[%clk 0:00:11]} 35. f3 {[%clk 0:00:01]}  a4 {[%clk 0:00:11]} 36. Kf2 {[%clk 0:00:02]}  Bd5 {[%clk 0:00:11]} 37. Be2 {[%clk 0:00:02]}  Qb2 {[%clk 0:00:10]} 38. h3 {[%clk 0:00:02]}  Bb3 {[%clk 0:00:10]} 39. Kg3 {[%clk 0:00:02]}  Qxa3 {[%clk 0:00:10]} 40. Qa6 {[%clk 0:00:01]}  Qb4 {[%clk 0:00:09]} 0-1


[Site "https://www.chess.com"]

[Event "Titled Tuesday Blitz July 20 2021"]
[White "Bryakin, Mikhail"]
[Black "Kubatko, Ivan"]
[WhiteFideId "4165314"]
[BlackFideId "24111473"]
[WhiteElo "2403"]
[BlackElo "2285"]
[Result "1-0"]
[Round "08"]
[TimeControl "180+1"]
[Date "2021.07.21"]
[WhiteClock "0:01:49"]
[BlackClock "0:00:01"]

1. e4 {[%clk 0:03:00]}  d5 {[%clk 0:02:58]} 2. exd5 {[%clk 0:02:58]}  Qxd5 {[%clk 0:02:58]} 3. d4 {[%clk 0:02:56]}  e5 {[%clk 0:02:58]} 4. Nc3 {[%clk 0:02:42]}  Bb4 {[%clk 0:02:44]} 5. Nf3 {[%clk 0:02:23]}  Bg4 {[%clk 0:02:07]} 6. dxe5 {[%clk 0:02:20]}  Qxd1+ {[%clk 0:02:04]} 7. Kxd1 {[%clk 0:02:21]}  Nc6 {[%clk 0:02:01]} 8. Bf4 {[%clk 0:02:21]}  O-O-O {[%clk 0:01:59]} 9. Kc1 {[%clk 0:02:22]}  Bxc3 {[%clk 0:01:27]} 10. bxc3 {[%clk 0:02:22]}  Nge7 {[%clk 0:01:28]} 11. Bc4 {[%clk 0:02:20]}  Bxf3 {[%clk 0:01:09]} 12. gxf3 {[%clk 0:02:18]}  Ng6 {[%clk 0:00:58]} 13. Bg5 {[%clk 0:02:18]}  Rdf8 {[%clk 0:00:58]} 14. e6 {[%clk 0:02:16]}  fxe6 {[%clk 0:00:43]} 15. Bxe6+ {[%clk 0:02:17]}  Kb8 {[%clk 0:00:43]} 16. Be3 {[%clk 0:02:17]}  Rxf3 {[%clk 0:00:38]} 17. Rb1 {[%clk 0:02:17]}  Rf6 {[%clk 0:00:35]} 18. Bd5 {[%clk 0:02:16]}  Rd8 {[%clk 0:00:33]} 19. c4 {[%clk 0:02:16]}  Nge7 {[%clk 0:00:30]} 20. Be4 {[%clk 0:02:15]}  b6 {[%clk 0:00:20]} 21. Rg1 {[%clk 0:02:14]}  g6 {[%clk 0:00:19]} 22. c5 {[%clk 0:02:15]}  Re6 {[%clk 0:00:18]} 23. Bh1 {[%clk 0:02:13]}  Nd5 {[%clk 0:00:18]} 24. cxb6 {[%clk 0:02:11]}  axb6 {[%clk 0:00:13]} 25. Bg5 {[%clk 0:02:09]}  Rd7 {[%clk 0:00:08]} 26. Rd1 {[%clk 0:02:09]}  Red6 {[%clk 0:00:04]} 27. Rb3 {[%clk 0:02:06]}  Nde7 {[%clk 0:00:03]} 28. Rxd6 {[%clk 0:02:04]}  Rxd6 {[%clk 0:00:03]} 29. Bf4 {[%clk 0:02:04]}  Re6 {[%clk 0:00:03]} 30. Rxb6+ {[%clk 0:02:03]}  Kc8 {[%clk 0:00:02]} 31. Rb1 {[%clk 0:01:58]}  Re1+ {[%clk 0:00:02]} 32. Kb2 {[%clk 0:01:58]}  Re2 {[%clk 0:00:02]} 33. Be3 {[%clk 0:01:56]}  Ne5 {[%clk 0:00:01]} 34. Kc3 {[%clk 0:01:49]}  Nf5 {[%clk 0:00:01]} 35. Bb7+ {[%clk 0:01:49]}  Kd7 {[%clk 0:00:01]} 36. Ba6 {[%clk 0:01:49]} 1-0


[Site "https://www.chess.com"]

[Event "Titled Tuesday Blitz July 20 2021"]
[White "Buchenau, Frank"]
[Black "Remizov, Yaroslav"]
[WhiteFideId "4604350"]
[BlackFideId "34134015"]
[WhiteElo "2255"]
[BlackElo "2335"]
[Result "1-0"]
[Round "08"]
[TimeControl "180+1"]
[Date "2021.07.21"]
[WhiteClock "0:00:26"]
[BlackClock "0:00:02"]

1. e4 {[%clk 0:02:56]}  c5 {[%clk 0:02:57]} 2. Nf3 {[%clk 0:02:56]}  d6 {[%clk 0:02:58]} 3. Bb5+ {[%clk 0:02:55]}  Nd7 {[%clk 0:02:56]} 4. O-O {[%clk 0:02:54]}  a6 {[%clk 0:02:56]} 5. Bd3 {[%clk 0:02:53]}  e6 {[%clk 0:02:50]} 6. Re1 {[%clk 0:02:53]}  Ngf6 {[%clk 0:02:49]} 7. c3 {[%clk 0:02:52]}  b5 {[%clk 0:02:49]} 8. Bc2 {[%clk 0:02:50]}  c4 {[%clk 0:02:49]} 9. b4 {[%clk 0:02:49]}  cxb3 {[%clk 0:02:43]} 10. axb3 {[%clk 0:02:48]}  Bb7 {[%clk 0:02:43]} 11. d4 {[%clk 0:02:48]}  Be7 {[%clk 0:02:39]} 12. Bf4 {[%clk 0:02:46]}  O-O {[%clk 0:02:36]} 13. Nbd2 {[%clk 0:02:45]}  Rc8 {[%clk 0:02:35]} 14. c4 {[%clk 0:02:45]}  e5 {[%clk 0:02:07]} 15. Bg5 {[%clk 0:02:27]}  h6 {[%clk 0:02:02]} 16. Bh4 {[%clk 0:02:25]}  Qb6 {[%clk 0:01:52]} 17. c5 {[%clk 0:02:23]}  Qc7 {[%clk 0:01:40]} 18. cxd6 {[%clk 0:02:10]}  Bxd6 {[%clk 0:01:39]} 19. dxe5 {[%clk 0:02:05]}  Nxe5 {[%clk 0:01:19]} 20. Bxf6 {[%clk 0:02:03]}  Ng4 {[%clk 0:01:14]} 21. Bxg7 {[%clk 0:01:39]}  Bxh2+ {[%clk 0:01:06]} 22. Nxh2 {[%clk 0:01:27]}  Qxh2+ {[%clk 0:01:02]} 23. Kf1 {[%clk 0:01:27]}  Qh1+ {[%clk 0:00:20]} 24. Ke2 {[%clk 0:01:27]}  Qh4 {[%clk 0:00:21]} 25. Bd4 {[%clk 0:01:23]}  Rfd8 {[%clk 0:00:21]} 26. Nf3 {[%clk 0:01:19]}  Qh5 {[%clk 0:00:18]} 27. Rh1 {[%clk 0:01:13]}  Qg6 {[%clk 0:00:17]} 28. Kf1 {[%clk 0:01:05]}  Bxe4 {[%clk 0:00:07]} 29. Bxe4 {[%clk 0:00:54]}  Qxe4 {[%clk 0:00:08]} 30. Rh4 {[%clk 0:00:50]}  f5 {[%clk 0:00:06]} 31. b4 {[%clk 0:00:46]}  Rc2 {[%clk 0:00:06]} 32. Rc1 {[%clk 0:00:40]}  Rxf2+ {[%clk 0:00:04]} 33. Kg1 {[%clk 0:00:39]}  Rxg2+ {[%clk 0:00:02]} 34. Kxg2 {[%clk 0:00:36]}  Ne3+ {[%clk 0:00:02]} 35. Bxe3 {[%clk 0:00:36]}  Rxd1 {[%clk 0:00:02]} 36. Rxe4 {[%clk 0:00:31]}  Rxc1 {[%clk 0:00:02]} 37. Re8+ {[%clk 0:00:29]}  Kf7 {[%clk 0:00:02]} 38. Bxc1 {[%clk 0:00:29]}  Kxe8 {[%clk 0:00:02]} 39. Bxh6 {[%clk 0:00:28]}  Kd7 {[%clk 0:00:02]} 40. Kg3 {[%clk 0:00:28]}  Kd6 {[%clk 0:00:03]} 41. Kf4 {[%clk 0:00:27]}  a5 {[%clk 0:00:02]} 42. bxa5 {[%clk 0:00:26]}  b4 {[%clk 0:00:03]} 43. Bf8+ {[%clk 0:00:26]}  Kc6 {[%clk 0:00:02]} 44. Bxb4 {[%clk 0:00:26]}  Kb5 {[%clk 0:00:02]} 45. Bd2 {[%clk 0:00:26]} 1-0


[Site "https://www.chess.com"]

[Event "Titled Tuesday Blitz July 20 2021"]
[White "Buscar, Michael"]
[Black "Stribuk, Artiom"]
[WhiteFideId "2603616"]
[BlackFideId "13515659"]
[WhiteElo "2010"]
[BlackElo "2224"]
[Result "0-1"]
[Round "08"]
[TimeControl "180+1"]
[Date "2021.07.21"]
[WhiteClock "0:00:18"]
[BlackClock "0:01:17"]

1. d4 {[%clk 0:03:00]}  Nf6 {[%clk 0:03:00]} 2. c4 {[%clk 0:03:00]}  g6 {[%clk 0:03:00]} 3. Nc3 {[%clk 0:03:00]}  d5 {[%clk 0:03:01]} 4. Nf3 {[%clk 0:02:59]}  Bg7 {[%clk 0:03:01]} 5. e3 {[%clk 0:02:59]}  O-O {[%clk 0:03:01]} 6. Qb3 {[%clk 0:02:56]}  e6 {[%clk 0:02:51]} 7. cxd5 {[%clk 0:02:44]}  exd5 {[%clk 0:02:49]} 8. Be2 {[%clk 0:02:43]}  b6 {[%clk 0:02:49]} 9. Ne5 {[%clk 0:02:40]}  Be6 {[%clk 0:02:39]} 10. O-O {[%clk 0:02:36]}  c5 {[%clk 0:02:39]} 11. f4 {[%clk 0:02:35]}  Nbd7 {[%clk 0:02:38]} 12. Ba6 {[%clk 0:02:26]}  Nxe5 {[%clk 0:02:37]} 13. fxe5 {[%clk 0:02:18]}  Ne4 {[%clk 0:02:38]} 14. Bb7 {[%clk 0:02:10]}  Rb8 {[%clk 0:02:36]} 15. Nxe4 {[%clk 0:01:57]}  dxe4 {[%clk 0:02:35]} 16. d5 {[%clk 0:01:58]}  Rxb7 {[%clk 0:02:21]} 17. dxe6 {[%clk 0:01:57]}  Bxe5 {[%clk 0:02:20]} 18. Qc4 {[%clk 0:01:40]}  Qd3 {[%clk 0:02:00]} 19. exf7+ {[%clk 0:00:53]}  Rbxf7 {[%clk 0:01:58]} 20. Qxd3 {[%clk 0:00:51]}  exd3 {[%clk 0:01:53]} 21. Rxf7 {[%clk 0:00:41]}  Rxf7 {[%clk 0:01:54]} 22. Rb1 {[%clk 0:00:41]}  c4 {[%clk 0:01:38]} 23. Bd2 {[%clk 0:00:39]}  b5 {[%clk 0:01:38]} 24. Bc3 {[%clk 0:00:33]}  Re7 {[%clk 0:01:22]} 25. Bxe5 {[%clk 0:00:23]}  Rxe5 {[%clk 0:01:22]} 26. Kf2 {[%clk 0:00:24]}  Kf7 {[%clk 0:01:20]} 27. Rd1 {[%clk 0:00:18]}  Ke6 {[%clk 0:01:18]} 28. Kf3 {[%clk 0:00:19]}  Kd5 {[%clk 0:01:18]} 29. Kf4 {[%clk 0:00:19]}  Rf5+ {[%clk 0:01:18]} 30. Kg3 {[%clk 0:00:18]}  Ke4 {[%clk 0:01:19]} 31. Re1 {[%clk 0:00:18]}  Rc5 {[%clk 0:01:17]} 0-1


[Site "https://www.chess.com"]